Cogmind - Beta 14 @@@ ROGUE MODE // 2024.12.08 @ 13:45:23 Player: Mathewnd Result: Destroyed by G-34 Mercenary with Small Laser Performance ------------- Evolutions (1) 500 Regions Visited (3) 600 Robots Destroyed (18) 90 Value Destroyed (466) 466 Prototype IDs (2) 40 Alien Tech Used (0) 0 Bonus (11) 11 TOTAL SCORE: 1707 Bonus ------- High Alert Combat Kills 11 Cogmind --------- Core Integrity 0/400 Matter 176/300 Energy 92/100 System Corruption 2% Temperature Cool (6) Movement Core (100) Ox1 Location -9/Storage Parts ------- > --- POWER (1) -------- (None) > --- PROPULSION (4) --- (None) > --- UTILITY (2) ------ Small Storage Unit Hacking Suite > --- WEAPON (2) ------- (None) > --- INVENTORY (8) ---- Aluminum Leg Improved Heat Sink Signal Interpreter Datajack Peak State ------------ > --- POWER ------------ Light Nuclear Core > --- PROPULSION ------- Flight Unit Flight Unit Flight Unit VTOL Module > --- UTILITY ---------- Small Storage Unit Hacking Suite > --- WEAPON ----------- Light Assault Rifle Improved Light Cannon > --- INVENTORY -------- Light Ion Engine Aluminum Leg Flight Unit Improved Heat Sink Signal Interpreter EMP Blaster Grenade Launcher Datajack [Rating: 16] Favorites ----------- Power Light Nuclear Core Engine Ion Engine Power Core Light Nuclear Core Propulsion Aluminum Leg Leg Aluminum Leg Flight Unit Flight Unit Utility Small Storage Unit Storage Small Storage Unit Hackware Hacking Suite Weapon EM Pulse Gun Energy Gun EM Pulse Gun Ballistic Gun Light Assault Rifle Ballistic Cannon Improved Light Cannon Launcher Grenade Launcher Build | -11 -10 -9 -9 ------- Run | Yrd Mat Mat Sto Slots Evolved 2 | . . 2 . Power . | . . . . Propulsion 2 | . . 2 . Utility . | . . . . Weapon . | . . . . Parts Attached 31 | 7 12 7 5 Power 6 | 3 2 . 1 Engine 4 | 3 . . 1 Core 2 | . 2 . . Reactor . | . . . . Propulsion 8 | 2 . 4 2 Treads . | . . . . Leg 2 | 2 . . . Wheel . | . . . . Hover . | . . . . Flight 6 | . . 4 2 Utility 2 | 1 1 . . Device . | . . . . Storage 1 | 1 . . . Processor . | . . . . Hackware 1 | . 1 . . Protection . | . . . . Artifact . | . . . . Weapon 15 | 1 9 3 2 Energy Gun 9 | 1 7 1 . Energy Cannon . | . . . . Ballistic Gun 2 | . 1 1 . Ballistic Cannon 1 | . . 1 . Launcher 3 | . 1 . 2 Special Weapon . | . . . . Impact Weapon . | . . . . Slashing Weapon . | . . . . Piercing Weapon . | . . . . Special Melee Weapon . | . . . . Unidentified Prototypes . | . . . . Parts Lost 17 | . 3 2 12 Power 3 | . 1 . 2 Propulsion 6 | . . . 6 Utility . | . . . . Weapon 8 | . 2 2 4 Highest Loss Streak 11 | . 2 2 11 To Critical Strikes . | . . . . Average Slot Usage (%) 91 | . 97 83 73 Engine 3 | . 4 . . Core 9 | . 9 11 7 Leg 22 | . 28 14 . Flight 6 | . . 16 29 Storage 13 | . 14 11 11 Hackware 12 | . 12 11 11 Energy Gun 17 | . 21 13 . Ballistic Gun 5 | . 5 2 7 Ballistic Cannon 1 | . . 2 3 Peak Build Rating 16 | 5 12 15 16 Average Rating 8 | 4 10 12 11 On Entrance 8 | . 5 12 15 Naked Turns . | . . . . Heaviest Build 15 | 12 15 15 15 Greatest Support 20 | 20 20 20 16 Greatest Overweight (x) 3 | . . . 3 Average Overweight (x) . | . . . . Largest Inventory Capacity 8 | 8 8 8 8 Average Capacity 7 | 7 8 8 8 Most Carried 8 | 7 8 8 8 Average Carried 7 | 6 7 7 6 Final Capacity 8 | 8 8 8 8 Final Carried 8 | 7 8 8 4 Class Distribution -------------------- 88% | Mutant 11% | Scavenger-Sprinter Dominant Class ---------------- Mutant | -10/Materials Scavenger-Sprinter | -9/Materials Scavenger-Sprinter | -9/Storage Resources | -11 -10 -9 -9 ----------- Run | Yrd Mat Mat Sto Matter Collected 394 | 251 103 40 . Remotely . | . . . . Salvage Created 468 | . 285 29 154 Parts 42 | . 23 8 11 Haulers Intercepted . | . . . . Recyclers Shooed 1 | . . . 1 Parts Field Recycled . | . . . . Retrieved Matter . | . . . . Parts Self-Destructed . | . . . . Prevented . | . . . . Kills | -11 -10 -9 -9 ------- Run | Yrd Mat Mat Sto Combat Hostiles Destroyed 14 | . 9 3 2 Guns 10 | . 8 2 . AOE 4 | . 1 1 2 Classes Destroyed 6 | . 3 . 3 Worker 1 | . . . 1 Mechanic 1 | . . . 1 Operator 2 | . 2 . . Swarmer 6 | . 3 3 . Grunt 6 | . 6 . . Sentry 2 | . . . 2 Best Kill Streak 4 | . 3 3 4 Combat Bots Only 3 | . 3 3 2 Max Kills in Single Turn 2 | . 2 1 2 Gunslinging . | . . . . Exploded 2 | . 1 1 2 Melee . | . . . . Uniques/NPCs Destroyed . | . . . . Combat | -11 -10 -9 -9 -------- Run | Yrd Mat Mat Sto Hostile Shots Fired 157 | . 42 29 86 Missed 60 | . 17 13 30 Damage Taken 1438 | . 397 178 863 Core 453 | . 50 44 359 Absorbed by Shields . | . . . . Regen/Repaired (Parts) 24 | . 24 . . Core Remaining (%) 90 | 100 80 . . Volleys Fired 38 | . 25 5 8 Largest 2 | . 2 2 2 Hottest 80 | . 80 80 63 Shots Fired 67 | . 48 8 11 Gun 56 | . 45 8 3 Cannon 1 | . . . 1 Launcher 10 | . 3 . 7 Special . | . . . . Kinetic 8 | . 4 . 4 Thermal 27 | . 23 4 . Explosive 8 | . 3 . 5 Electromagnetic 24 | . 18 4 2 Robot Hit Streak 9 | . 8 2 9 Robot Miss Streak 4 | . 1 4 . Penetration Max . | . . . . Secondary Targets . | . . . . Shots Hit Robots 43 | . 33 3 7 Core Hits 28 | . 15 3 10 Critical Kills . | . . . . Critical Parts Destroyed . | . . . . Critical Strikes . | . . . . Melee Attacks . | . . . . Impact . | . . . . Slashing . | . . . . Piercing . | . . . . Sneak Attacks . | . . . . Combat Hostiles . | . . . . Follow-up Attacks . | . . . . Damage Inflicted 1040 | . 684 61 295 Guns 442 | . 409 33 . Cannons . | . . . . Explosions 596 | . 275 28 293 Melee . | . . . . Ramming 2 | . . . 2 Kinetic 34 | . 34 . . Thermal 506 | . 455 51 . Explosive 204 | . . . 204 Electromagnetic 294 | . 195 10 89 Impact . | . . . . Slashing . | . . . . Piercing . | . . . . Highest Corruption 2 | . . . 2 Average Corruption 2 | . . . 2 Corruption Purged . | . . . . Corruption Blocked . | . . . . Overload Shots . | . . . . Overflow Damage 124 | . 123 1 . Projectiles . | . . . . Explosions 124 | . 123 1 . Melee . | . . . . Knockbacks . | . . . . Impact . | . . . . Kinetic . | . . . . Secondary . | . . . . Self-Inflicted Damage 245 | . 131 38 76 Shots 9 | . 2 1 6 Rammed 3 | . . . 3 Targets Rammed 3 | . . . 3 Kicked . | . . . . Crushed . | . . . . Highest Temperature 213 | . 213 42 24 Average Temperature 60 | . 79 19 7 Received Heat Transfer 423 | . 93 27 303 Siege Activations . | . . . . Robots Corrupted . | . . . . Combat Hostiles . | . . . . Parts Fried . | . . . . Impact Corruptions . | . . . . Robots Melted . | . . . . Combat Hostiles . | . . . . Parts Melted 1 | . 1 . . Heat Transferred 800 | . 700 100 . Parts Sabotaged . | . . . . Parts Stolen . | . . . . Parts Stripped . | . . . . Power Chain Reactions 2 | . 1 1 . Alert | -11 -10 -9 -9 ------- Run | Yrd Mat Mat Sto Peak Influence 460 | . 265 243 460 Initial 102 | . . 85 102 Average 91 | . 101 161 279 Maximum Alert Level 2 | . 1 1 2 Low Security (%) 77 | 100 76 56 21 Level 1 21 | . 23 43 63 Level 2 1 | . . . 14 Level 3 . | . . . . Level 4 . | . . . . Level 5 . | . . . . High Security . | . . . . Max Security . | . . . . Squads Dispatched 2 | . 1 . 1 Investigation . | . . . . Extermination . | . . . . Reinforcement 2 | . 1 . 1 Assault . | . . . . Garrison . | . . . . Intercept . | . . . . Searches Triggered . | . . . . Construction Impeded . | . . . . Haulers Reinforced . | . . . . Active Scanning Responses . | . . . . Cargo Convoy Interrupts . | . . . . Stealth | -11 -10 -9 -9 --------- Run | Yrd Mat Mat Sto Distress Signals 3 | . . 2 1 Communications Jammed . | . . . . Distress Signals . | . . . . Times Spotted 57 | . 17 15 25 Peak Tracking Total 12 | . 4 7 12 Tactical Retreats 7 | . 1 2 4 Traps | -11 -10 -9 -9 ------- Run | Yrd Mat Mat Sto Traps Triggered . | . . . . Indirectly . | . . . . Trap Hack Attempts . | . . . . Triggered . | . . . . Disarmed . | . . . . Reprogrammed . | . . . . Reused . | . . . . Traps Extracted . | . . . . Installed . | . . . . Triggered . | . . . . Machines | -11 -10 -9 -9 ---------- Run | Yrd Mat Mat Sto Machines Disabled 4 | . 2 . 2 Max in Single Turn 2 | . 2 . 1 Machines Repaired . | . . . . Machines Dismantled . | . . . . Machines Sabotaged . | . . . . Overloaded Fab Kills . | . . . . Hacking | -11 -10 -9 -9 --------- Run | Yrd Mat Mat Sto Machines Accessed 12 | . 6 1 5 Terminals 9 | . 4 . 5 Fabricators . | . . . . Repair Stations 1 | . 1 . . Recycling Units 2 | . 1 1 . Scanalyzers . | . . . . Garrison Access . | . . . . Total Hacks 31 | . 21 2 8 Successful 21 | . 15 2 4 Failed 10 | . 6 . 4 Catastrophic 4 | . 3 . 1 Database Lockouts . | . . . . Manual 9 | . 4 . 5 Terminals 23 | . 15 . 8 Fabricators . | . . . . Repair Stations 4 | . 4 . . Recycling Units 4 | . 2 2 . Scanalyzers . | . . . . Garrison Access . | . . . . Terminal Hacks 13 | . 9 . 4 Prototype ID Bank 1 | . 1 . . Open Door 2 | . . . 2 Branch Access Points 2 | . 1 . 1 Emergency Access Points 1 | . 1 . . Alert Level 1 | . 1 . . Unreport Threat 1 | . 1 . . Locate Traps 3 | . 2 . 1 Zone Layout 2 | . 2 . . Fabricator Hacks . | . . . . Repair Station Hacks 4 | . 4 . . Scan Component 2 | . 2 . . Repair 2 | . 2 . . Recycling Unit Hacks 4 | . 2 2 . Report Inventory 2 | . 1 1 . Retrieve Components 2 | . 1 1 . Scanalyzer . | . . . . Garrison Access Hacks . | . . . . Unauthorized Hacks . | . . . . Terminals . | . . . . Fabricators . | . . . . Repair Stations . | . . . . Recycling Units . | . . . . Scanalyzers . | . . . . Garrison Access . | . . . . Data Cores Recovered 1 | . 1 . . Used . | . . . . Hacking Detections 9 | . 5 1 3 Full Trace Events . | . . . . Feedback Events . | . . . . Feedback Blocked . | . . . . Robot Schematics Acquired . | . . . . Robots Built . | . . . . Authchips . | . . . . Time . | . . . . Total Robot Build Rating . | . . . . Part Schematics Acquired . | . . . . Parts Built . | . . . . Authchips . | . . . . Time . | . . . . Total Part Build Rating . | . . . . Parts Repaired 2 | . 2 . . Time 79 | . 79 . . Parts Recycled . | . . . . Recycled Matter . | . . . . Retrieved Matter . | . . . . Retrieved Components 9 | . 7 2 . Parts Scanalyzed . | . . . . Part Schematics Acquired . | . . . . Parts Damaged . | . . . . Bothacking | -11 -10 -9 -9 ------------ Run | Yrd Mat Mat Sto Used RIF Installer . | . . . . Robots Hacked . | . . . . Non-combat . | . . . . Combat . | . . . . Robot Hacks Applied . | . . . . Relay Couplers Released . | . . . . Fabnet Peak Effective % . | . . . . Robots Rewired . | . . . . Allies Hacked . | . . . . Hacks Repelled . | . . . . Allies | -11 -10 -9 -9 -------- Run | Yrd Mat Mat Sto Total Allies . | . . . . Largest Group . | . . . . Highest-Rated Group . | . . . . Highest-Rated Ally . | . . . . Total Orders . | . . . . Ally Attacks . | . . . . Total Damage . | . . . . Kills . | . . . . Allies Corrupted . | . . . . Allies Melted . | . . . . Intel | -11 -10 -9 -9 ------- Run | Yrd Mat Mat Sto Robot Analysis Total . | . . . . Derelict Logs Recovered . | . . . . Drone Launches . | . . . . Drone Recoveries . | . . . . Exploration | -11 -10 -9 -9 ------------- Run | Yrd Mat Mat Sto Turns Passed 1473 | 484 703 145 141 Spaces Moved 1038 | 169 396 172 301 Core 29 | 7 . . 22 Treads . | . . . . Legs 599 | 162 396 41 . Wheels . | . . . . Hover . | . . . . Flight 410 | . . 131 279 Fastest Speed 29 | 50 120 31 29 Average Speed 84 | 117 120 52 37 Slowest Speed 200 | 120 120 120 200 Overloaded Moves . | . . . . Propulsion Burnouts . | . . . . Robots Hopped 9 | . . 3 6 Cave-ins Triggered . | . . . . Exploration Rate (%) 37 | 12 64 15 59 Regions Visited 3 Branch Regions 1 Pre-discovered Areas . | . . . . Known Exits Taken . | . . . . Unknown Exits Taken 3 | 1 1 1 . Scrap Searched . | . . . . Spaces Dug . | . . . . Terrain Destroyed 54 | . 32 2 20 Melee . | . . . . Projectile . | . . . . AOE 54 | . 32 2 20 Terrain Rammed . | . . . . Walls Destroyed . | . . . . Machines Disabled . | . . . . Actions | -11 -10 -9 -9 --------- Run | Yrd Mat Mat Sto Total 1562 | 454 577 217 314 Wait 419 | 265 127 27 . Move 1019 | 168 395 165 291 Hop 7 | . . 3 4 Pick Up 32 | 13 12 5 2 Fast Attach 3 | . 1 2 . Attach 20 | 5 5 5 5 Detach 2 | . . 2 . Swap 8 | 2 6 . . Drop 11 | 1 6 3 1 Fire 38 | . 25 5 8 Melee . | . . . . Ram 3 | . . . 3 Kick . | . . . . Crush . | . . . . Escape Stasis . | . . . . Rewire . | . . . . Trap . | . . . . Miscellaneous . | . . . . Route ------- -11/Scrapyard -10/Materials (discovered 2 exits: *Mat / *Min) -9/Materials -9/Storage (discovered 1 exit: Rec) History --------- Turn | Location | Event 6 | -11/Scrapyard | Discovered new exit (range 16) 485 | -11/Scrapyard | Entered Materials 486 | -10/Materials | Build established: Mutant 503 | -10/Materials | Discovered new exit (range 13) 562 | -10/Materials | Identified exit to Mines 1026 | -10/Materials | Repaired Corrupted Lgt. Nuclear Core 1053 | -10/Materials | Repaired EM Pulse Gun 1188 | -10/Materials | Entered another Materials area 1188 | -9/Materials | Evolved 2 slots: Propulsion x2 1327 | -9/Materials | Discovered new exit (range 9) 1333 | -9/Materials | Entered Storage 1387 | -9/Storage | Identified exit to Recycling 1446 | -9/Storage | Core integrity fell below 50% 1463 | -9/Storage | Core integrity fell below 20% 1474 | -9/Storage | Destroyed by G-34 Mercenary with Small Laser Last Messages --------------- Flight Unit destroyed. Slammed into Y-45 Defender. Flight Unit destroyed. Slammed into G-34 Mercenary. Flight Unit destroyed. Lgt. Ion Engine destroyed. Y-45 Defender suffers critical hit (Burn). G-34 Mercenary destroyed. Lgt. Assault Rifle destroyed. Critical hit (Burn: +37). W-16 Scout sends out distress signal. Terminal disabled. Y-45 Defender destroyed. U-05 Engineer lays Concrete. M-13 Machinist destroyed. EMP Blaster destroyed. U-05 Engineer builds a Wall. Grenade Launcher destroyed. U-05 Engineer lays Concrete. U-05 Engineer builds a Wall. Map ----- +----------------------------------------------------+ | ???????????????#??# #????????????????????#####?? | | ??????????????????# #??????????????????????????? | | ??????????????????# #??????????????????????????? | | ??????????????????? #??????????????????????????? | | ??????????????????? ???????????????????????????? | | ?????????????????????????????????????????????????? | | ?????????????????????????????????????????????????? | | ?????????????????????????????????????????????????? | | ?????????????????????????????????????????????????? | | ?????????????????????????????????????????????????? | | ?????????????????????????????????????????????????? | | ??????????????????????????? #????????????????????? | | ??????????????????# ??????? #????????????????????? | | ??????????????????# ?????? #????????????????????? | | ??????????????????# ?????? #????????????????????? | | ??????????????????+ ?????a#????????????????????? | | ??????????????????# ????? #????????????????????? | | ??????????????????# #####g####?????????????????? | | ??????????????????# #??? ????????????? | | ?????????????????## #??? ?????????????? | | ????????????????## ### ??????????????? | | ????????????????? ^ # ?????????????? | | ??????????????????? YY ?????????????? | | ?????????????????????a "" #???????????????? | | ??????????? ???? ????? ^ "" #???????????????? | | ??????????? ???? #######@^"T #???????????????? | | ??????????? ???? + #^ "" #???????????????? | | ??????????? ????# """ # "" ##??????????????? | | ???????????? ????# """ /o #??????????????? | | ???????????? ????# """ # +??????????????? | | ???????????? ????# #Yg #??????????????? | | ????????##+##/##### """ ## ##### #??????????????? | | ?????#### ## """ ## w##??# #??????????????? | | ?????#""" "" ## """ #u ####+######+#???????? | | ?????#"R T" ## # # # #???????? | | ?????#""" "" ## ## """ # #???????? | | ????????# ##+## % # """ # ######### | | ????????# """ # = ! ## """ # | | ????????# ! """ # % [=[ # + | | ????????# """ + ## ! r# """ # | | ????????# # #### ##### "Y ########### | | ????????#### ##### ##?###???## """ #?????????? | | ?????????"####### ##T#????## #?????????? | | ?????????" # "****###########?????????? | | ???????>?" + #???????????????????? | | ?????????"#T##### # "****#???????????????????? | | ??????????##???##+#######????#???????????????????? | | ???????????????#T #??????????????????????????????? | | ???????????????## #??????????????????????????????? | | ????????????????#]#??????????????????????????????? | +----------------------------------------------------+ Best States ------------- Heat Dissipation 28 Energy Generation 14 Energy Capacity 250 Matter Stores 300 Matter Capacity 300 Sight Range 16 Terrain Scan Density 10 Evasion (%) 64 Offensive Hacking 10 Item Schematics ----------------- None Robot Schematics ------------------ None Fabricated ------------ Nothing Alien Tech Used ----------------- None Achievements -------------- None Challenges ------------ None Game ------ Seed DeliveryNeutrinoStick Manual? 0 Play Time 00:20:44 Cumulative 19.0 hours Start 2024.12.08 @ 13:24:25 End 2024.12.08 @ 13:45:23 Sessions 1 Manual Loads 0 Difficulty Rogue Special Mode None Game No. 25 Rogue 25 Adventurer 0 Explorer 0 Win Type - Total 0 Types 0/0/0/0/0/0/0/0/0 Lore% 13 Gallery% 19 Achievement% 19 Wizard Run 0 Options --------- Layout 1 ASCII 0 Keyboard 0 Movement Mouse Keybinds 0 Fullscreen 1 Font 24/Smallcaps Map View 50x35 Zoom Use 0% Tactical HUD 0 Map Filters NONE Filters NONE Steam 1 RUN: 75ef5d7c-3490-4f7f-996e-93f4f8329336